Workbook

Sheet Sheet1
A1: 报名序号 | B1: 考号 | C1: 姓名 | D1: 报考专业 | E1: 报考职位 | F1: 成绩
A2: 01447 | B2: 20228065908 | C2: 张春新 | D2: H-影像 | E2: 超声医师 | F2: =VLOOKUP(B2,'[1]Sheet1 (2)'!$A:$D,4,FALSE) -> 56.95
A3: 01516 | B3: 20228065910 | C3: 陈科如 | D3: H-影像 | E3: 超声医师 | F3: =VLOOKUP(B3,'[1]Sheet1 (2)'!$A:$D,4,FALSE) -> 52.25
A4: 01661 | B4: 20228065911 | C4: 郭宁波 | D4: H-影像 | E4: 超声医师 | F4: =VLOOKUP(B4,'[1]Sheet1 (2)'!$A:$D,4,FALSE) -> 51.90
A5: 01268 | B5: 20228063902 | C5: 郝琳琳 | D5: E-护理 | E5: 护理 | F5: =VLOOKUP(B5,'[1]Sheet1 (2)'!$A:$D,4,FALSE) -> 65.05
A6: 00142 | B6: 20228063824 | C6: 陈红 | D6: E-护理 | E6: 护理 | F6: =VLOOKUP(B6,'[1]Sheet1 (2)'!$A:$D,4,FALSE) -> 62.70
A7: 00650 | B7: 20228063825 | C7: 王芳 | D7: E-护理 | E7: 护理 | F7: =VLOOKUP(B7,'[1]Sheet1 (2)'!$A:$D,4,FALSE) -> 60.05
A8: 00405 | B8: 20228065114 | C8: 李锋 | D8: I-财务 | E8: 会计 | F8: =VLOOKUP(B8,'[1]Sheet1 (2)'!$A:$D,4,FALSE) -> 65.65
A9: 00822 | B9: 20228065129 | C9: 孟涛 | D9: I-财务 | E9: 会计 | F9: =VLOOKUP(B9,'[1]Sheet1 (2)'!$A:$D,4,FALSE) -> 64.70
A10: 00728 | B10: 20228065126 | C10: 王楠 | D10: I-财务 | E10: 会计 | F10: =VLOOKUP(B10,'[1]Sheet1 (2)'!$A:$D,4,FALSE) -> 62.45
A11: 00631 | B11: 20228065123 | C11: 李成伦 | D11: I-财务 | E11: 会计 | F11: =VLOOKUP(B11,'[1]Sheet1 (2)'!$A:$D,4,FALSE) -> 58.90
A12: 01908 | B12: 20228065230 | C12: 肖永慧 | D12: I-财务 | E12: 会计 | F12: =VLOOKUP(B12,'[1]Sheet1 (2)'!$A:$D,4,FALSE) -> 57.90
A13: 00572 | B13: 20228065122 | C13: 周玉龙 | D13: I-财务 | E13: 会计 | F13: =VLOOKUP(B13,'[1]Sheet1 (2)'!$A:$D,4,FALSE) -> 57.30
A14: 00815 | B14: 20228065626 | C14: 宋晓欣 | D14: O-口腔 | E14: 口腔医师 | F14: =VLOOKUP(B14,'[1]Sheet1 (2)'!$A:$D,4,FALSE) -> 74.00
A15: 00249 | B15: 20228065621 | C15: 陈道成 | D15: O-口腔 | E15: 口腔医师 | F15: =VLOOKUP(B15,'[1]Sheet1 (2)'!$A:$D,4,FALSE) -> 67.85
A16: 00803 | B16: 20228065625 | C16: 邢海凤 | D16: O-口腔 | E16: 口腔医师 | F16: =VLOOKUP(B16,'[1]Sheet1 (2)'!$A:$D,4,FALSE) -> 66.70
A17: 01377 | B17: 20228065628 | C17: 宋明哲 | D17: O-口腔 | E17: 口腔医师 | F17: =VLOOKUP(B17,'[1]Sheet1 (2)'!$A:$D,4,FALSE) -> 66.50
A18: 01561 | B18: 20228065629 | C18: 李静 | D18: O-口腔 | E18: 口腔医师 | F18: =VLOOKUP(B18,'[1]Sheet1 (2)'!$A:$D,4,FALSE) -> 64.25
A19: 00077 | B19: 20228065620 | C19: 徐同帅 | D19: O-口腔 | E19: 口腔医师 | F19: =VLOOKUP(B19,'[1]Sheet1 (2)'!$A:$D,4,FALSE) -> 62.80
A20: 00034 | B20: 20228060409 | C20: 李瑞娣 | D20: A-临床 | E20: 麻醉医师 | F20: =VLOOKUP(B20,'[1]Sheet1 (2)'!$A:$D,4,FALSE) -> 57.50
A21: 01627 | B21: 20228060425 | C21: 时晓妍 | D21: A-临床 | E21: 麻醉医师 | F21: =VLOOKUP(B21,'[1]Sheet1 (2)'!$A:$D,4,FALSE) -> 55.80
A22: 02415 | B22: 20228066101 | C22: 史杰 | D22: A-临床 | E22: 麻醉医师 | F22: =VLOOKUP(B22,'[1]Sheet1 (2)'!$A:$D,4,FALSE) -> 53.90
A23: 01805 | B23: 20228060427 | C23: 陈慧娟 | D23: A-临床 | E23: 麻醉医师 | F23: =VLOOKUP(B23,'[1]Sheet1 (2)'!$A:$D,4,FALSE) -> 53.25
A24: 01444 | B24: 20228060421 | C24: 张舒 | D24: A-临床 | E24: 麻醉医师 | F24: =VLOOKUP(B24,'[1]Sheet1 (2)'!$A:$D,4,FALSE) -> 52.65
A25: 00264 | B25: 20228060414 | C25: 李君相 | D25: A-临床 | E25: 麻醉医师 | F25: =VLOOKUP(B25,'[1]Sheet1 (2)'!$A:$D,4,FALSE) -> 48.45
A26: 00818 | B26: 20228065723 | C26: 孙鹏 | D26: M-综合 | E26: 人力资源管理 | F26: =VLOOKUP(B26,'[1]Sheet1 (2)'!$A:$D,4,FALSE) -> 43.50
A27: 02006 | B27: 20228065725 | C27: 薛飞 | D27: M-综合 | E27: 人力资源管理 | F27: =VLOOKUP(B27,'[1]Sheet1 (2)'!$A:$D,4,FALSE) -> 42.45
A28: 01799 | B28: 20228065724 | C28: 夏子程 | D28: M-综合 | E28: 人力资源管理 | F28: =VLOOKUP(B28,'[1]Sheet1 (2)'!$A:$D,4,FALSE) -> 32.45
A29: 01309 | B29: 20228065305 | C29: 高行 | D29: K-中医 | E29: 疼痛科医师 | F29: =VLOOKUP(B29,'[1]Sheet1 (2)'!$A:$D,4,FALSE) -> 65.95
A30: 01508 | B30: 20228065306 | C30: 黄士宏 | D30: K-中医 | E30: 疼痛科医师 | F30: =VLOOKUP(B30,'[1]Sheet1 (2)'!$A:$D,4,FALSE) -> 54.05
A31: 01969 | B31: 20228065308 | C31: 高茂齐 | D31: K-中医 | E31: 疼痛科医师 | F31: =VLOOKUP(B31,'[1]Sheet1 (2)'!$A:$D,4,FALSE) -> 51.75
A32: 01634 | B32: 20228066107 | C32: 时启亮 | D32: A-临床 | E32: 外科医师 | F32: =VLOOKUP(B32,'[1]Sheet1 (2)'!$A:$D,4,FALSE) -> 53.70
A33: 00841 | B33: 20228066103 | C33: 于亚萍 | D33: A-临床 | E33: 外科医师 | F33: =VLOOKUP(B33,'[1]Sheet1 (2)'!$A:$D,4,FALSE) -> 52.65
A34: 01371 | B34: 20228066105 | C34: 董琪琪 | D34: A-临床 | E34: 外科医师 | F34: =VLOOKUP(B34,'[1]Sheet1 (2)'!$A:$D,4,FALSE) -> 51.45
A35: 01001 | B35: 20228066104 | C35: 邵光金 | D35: A-临床 | E35: 外科医师 | F35: 49.70
A36: 01524 | B36: 20228066106 | C36: 任绪文 | D36: A-临床 | E36: 外科医师 | F36: 48.15
A37: 02546 | B37: 20228066109 | C37: 高亚东 | D37: A-临床 | E37: 外科医师 | F37: 47.20
A38: 00766 | B38: 20228066110 | C38: 李孟茹 | D38: A-临床 | E38: 血透室医师 | F38: =VLOOKUP(B38,'[1]Sheet1 (2)'!$A:$D,4,FALSE) -> 57.70
A39: 02508 | B39: 20228066111 | C39: 徐欣 | D39: A-临床 | E39: 血透室医师 | F39: =VLOOKUP(B39,'[1]Sheet1 (2)'!$A:$D,4,FALSE) -> 44.50
A40: 01345 | B40: 20228061614 | C40: 刘沪东 | D40: D-西药 | E40: 药剂 | F40: =VLOOKUP(B40,'[1]Sheet1 (2)'!$A:$D,4,FALSE) -> 61.65
A41: 02159 | B41: 20228061619 | C41: 杜欣欣 | D41: D-西药 | E41: 药剂 | F41: =VLOOKUP(B41,'[1]Sheet1 (2)'!$A:$D,4,FALSE) -> 57.25
A42: 01879 | B42: 20228061618 | C42: 郑菲 | D42: D-西药 | E42: 药剂 | F42: =VLOOKUP(B42,'[1]Sheet1 (2)'!$A:$D,4,FALSE) -> 56.10
